Cogmind - Beta 15 @@@ ROGUE MODE // 2025.08.16 @ 20:25:16 Player: StaticNoob Result: Destroyed by H-66 Slayer with Heavy Assault Rifle Performance ------------- Evolutions (5) 2500 Regions Visited (5) 1000 Robots Destroyed (32) 160 Value Destroyed (884) 884 Prototype IDs (14) 280 Alien Tech Used (0) 0 Bonus (800) 800 TOTAL SCORE: 5624 Bonus ------- Registered with UFD 300 Met Optimus in HQ 500 Cogmind --------- Core Integrity 0/1000 Matter 138/300 Energy 100/100 System Corruption 0% Temperature Cool (0) Movement Core (50) Location -5/Factory Parts ------- > --- POWER (2) -------- (None) > --- PROPULSION (6) --- (None) > --- UTILITY (7) ------ Machine Analyzer Terrain Scan Processor > --- WEAPON (2) ------- Power Sword > --- INVENTORY (5) ---- Coolant Injector Improved Trap Scanner ECM Suite Remote Datajack Peak State ------------ > --- POWER ------------ Light Deuterium Engine > --- PROPULSION ------- Cooled Aerolev Unit Cooled Aerolev Unit Cooled Aerolev Unit Cooled Aerolev Unit Cooled Aerolev Unit > --- UTILITY ---------- Medium Storage Unit Gravity Neutralizer Machine Analyzer Improved Sensor Array Improved Signal Interpreter Advanced Terrain Scanner Terrain Scan Processor > --- WEAPON ----------- Heavy Plasma Cannon Katana > --- INVENTORY -------- Cooled Aerolev Unit Cooled Aerolev Unit Cooled Aerolev Unit Coolant Injector Small Storage Unit Improved Trap Scanner ECM Suite Rocket Launcher Remote Datajack DRS Beacon [Rating: 68] Favorites ----------- Power Subdweller Power Source Engine Subdweller Power Source Power Core Neutrino Core Propulsion Light Treads Treads Light Treads Wheel Subdweller Monowheel Hover Unit Cooled Aerolev Unit Utility Seismic Detector Device Seismic Detector Storage Large Storage Unit Processor Machine Analyzer Hackware System Shield Weapon Light Assault Rifle Energy Gun Medium Laser Energy Cannon Heavy Plasma Cannon Ballistic Gun Light Assault Rifle Ballistic Cannon Battle Cannon Launcher Rocket Launcher Special Weapon Remote Datajack Slashing Weapon Katana Build | -11 -10 -10 -9 -6 -5 ------- Run | Yrd Mat Sub Scr Fac Fac Slots Evolved 10 | . . . . 8 2 Power 1 | . . . . . 1 Propulsion 4 | . . . . 3 1 Utility 5 | . . . . 5 . Weapon . | . . . . . . Parts Attached 51 | 8 1 6 7 19 10 Power 6 | 1 . 1 1 2 1 Engine 5 | 1 . 1 1 2 . Core 1 | . . . . . 1 Reactor . | . . . . . . Propulsion 16 | 2 . 1 3 7 3 Treads 3 | 2 . . 1 . . Leg . | . . . . . . Wheel 1 | . . 1 . . . Hover 12 | . . . 2 7 3 Flight . | . . . . . . Utility 16 | 2 1 1 1 9 2 Device 9 | 1 . 1 . 6 1 Storage 3 | 1 1 . 1 . . Processor 3 | . . . . 3 . Hackware 1 | . . . . . 1 Protection . | . . . . . . Artifact . | . . . . . . Weapon 13 | 3 . 3 2 1 4 Energy Gun 1 | 1 . . . . . Energy Cannon 2 | . . . 1 1 . Ballistic Gun 4 | 2 . 2 . . . Ballistic Cannon 1 | . . 1 . . . Launcher 1 | . . . . . 1 Special Weapon 1 | . . . . . 1 Impact Weapon . | . . . . . . Slashing Weapon 3 | . . . 1 . 2 Piercing Weapon . | . . . . . . Special Melee Weapon . | . . . . . . Unidentified Prototypes 2 | . . . . 2 . Parts Lost 30 | . 1 7 . 8 14 Power 4 | . 1 . . 2 1 Propulsion 10 | . . 2 . 2 6 Utility 8 | . . 1 . 2 5 Weapon 8 | . . 4 . 2 2 Highest Loss Streak 10 | . 1 4 . 6 10 To Critical Strikes 1 | . . 1 . . . Average Backups 10 | 1 6 12 11 8 4 Power 1 | . 1 1 1 . . Propulsion 1 | . . 2 1 2 . Utility 4 | . 1 4 4 4 3 Weapon 3 | . 2 4 4 1 . Tool/Special . | . . . . . . Unused Backups 15 | . . . 10 3 2 Power 1 | . . . 1 . . Propulsion 1 | . . . . 1 . Utility 7 | . . . 4 1 2 Weapon 5 | . . . 5 . . Tool/Special 1 | . . . . 1 . Average Slot Usage (%) 94 | . 96 98 97 87 61 Engine 11 | . 10 13 14 5 . Treads 14 | . 28 27 10 . . Wheel 5 | . . . 11 . . Hover 6 | . . . 4 27 24 Device 14 | . 14 14 14 18 3 Storage 12 | . 14 14 14 6 5 Processor 3 | . . . . 18 16 Energy Gun 2 | . 14 4 . . . Ballistic Gun 18 | . 14 18 26 . . Ballistic Cannon 1 | . . 4 . . . Slashing Weapon 1 | . . . . 5 2 Peak Build Rating 68 | 7 7 12 17 68 56 Average Rating 16 | 4 6 10 11 51 44 On Entrance 11 | . 7 6 9 13 34 Naked Turns . | . . . . . . Heaviest Build 33 | 13 28 33 28 29 31 Greatest Support 45 | 40 40 40 20 45 45 Greatest Overweight (x) 8 | . . 8 3 7 5 Average Overweight (x) . | . . . 1 . . Largest Inventory Capacity 15 | 8 15 15 15 10 10 Average Capacity 13 | 7 13 15 14 10 9 Most Carried 15 | 3 9 15 15 10 9 Average Carried 11 | 1 6 12 12 9 5 Final Capacity 15 | 8 15 15 10 10 5 Final Carried 12 | 2 9 12 10 10 4 Class Distribution -------------------- 87% | Mutant 12% | Scout Dominant Class ---------------- Mutant | -10/Materials Mutant | -10/Subcaves Mutant | -9/Scraptown Scout | -6/Factory Mutant | -5/Factory Resources | -11 -10 -10 -9 -6 -5 ----------- Run | Yrd Mat Sub Scr Fac Fac Matter Collected 919 | 164 361 226 66 102 . Remotely . | . . . . . . Salvage Created 1246 | 85 552 341 . 77 191 Parts 83 | 11 34 17 . 9 12 Haulers Intercepted 1 | . 1 . . . . Recyclers Shooed 2 | 1 1 . . . . Parts Field Recycled . | . . . . . . Retrieved Matter . | . . . . . . Parts Self-Destructed 4 | . . 4 . . . Prevented . | . . . . . . Kills | -11 -10 -10 -9 -6 -5 ------- Run | Yrd Mat Sub Scr Fac Fac Combat Hostiles Destroyed 24 | . 10 8 . 3 3 Melee 6 | . . . . 3 3 Guns 15 | . 9 6 . . . Cannons 2 | . . 2 . . . Classes Destroyed 9 | 1 5 1 . . 2 Tunneler 4 | 3 1 . . . . Hauler 1 | . 1 . . . . Recycler 2 | . 2 . . . . Watcher 1 | . 1 . . . . Swarmer 9 | . 6 . . 3 . Grunt 4 | . 4 . . . . Sentry 1 | . . . . . 1 Hunter 2 | . . . . . 2 Subdweller 8 | . . 8 . . . Best Kill Streak 4 | 3 4 2 . 3 2 Combat Bots Only 4 | . 4 2 . 3 2 Max Kills in Single Turn 2 | 2 1 1 . 1 1 Gunslinging . | . . . . . . Exploded . | . . . . . . Melee 1 | . . . . 1 1 Uniques/NPCs Destroyed . | . . . . . . Combat | -11 -10 -10 -9 -6 -5 -------- Run | Yrd Mat Sub Scr Fac Fac Hostile Shots Fired 303 | . 43 35 . 71 154 Missed 79 | . 12 5 . 23 39 Hits 224 | . 31 30 . 48 115 Projectile 224 | . 31 30 . 48 115 AOE 3 | . . 2 . 1 . Critical Strikes 4 | . . 2 . . 2 Damage Taken 4053 | . 289 754 . 911 2099 Core 1363 | . 65 156 . 128 1014 Absorbed by Shields . | . . . . . . Core Remaining (%) 65 | 100 . . 11 84 . Volleys Fired 111 | 4 49 26 . 28 4 Largest 2 | 2 2 2 . 1 1 Hottest 90 | 70 70 70 . 90 33 Shots Fired 187 | 8 98 49 . 28 4 Gun 143 | 8 98 37 . . . Cannon 40 | . . 12 . 28 . Launcher 4 | . . . . . 4 Special . | . . . . . . Kinetic 91 | 4 49 38 . . . Thermal 92 | 4 49 11 . 28 . Explosive 4 | . . . . . 4 Electromagnetic . | . . . . . . Robot Hit Streak 25 | 2 6 25 . . . Robot Miss Streak 4 | 3 4 1 . 1 . Penetration Max . | . . . . . . Secondary Targets 3 | . 2 1 . . . Max Gunslinging Chain 1 | . 1 1 . . . Shots Hit Robots 114 | 3 55 44 . 4 8 Core Hits 49 | 3 23 16 . 3 4 Critical Kills . | . . . . . . Critical Parts Destroyed . | . . . . . . Critical Strikes 4 | . 1 1 . . 2 Burn 2 | . 1 1 . . . Sever 2 | . . . . . 2 Melee Attacks 44 | . . . . 32 12 Impact . | . . . . . . Slashing 44 | . . . . 32 12 Piercing . | . . . . . . Sneak Attacks 1 | . . . . 1 . Combat Hostiles . | . . . . . . Follow-up Attacks 1 | . . . . . 1 Damage Inflicted 1980 | 51 737 670 . 172 350 Guns 1240 | 51 726 463 . . . Cannons 207 | . . 207 . . . Explosions . | . . . . . . Melee 522 | . . . . 172 350 Ramming 11 | . 11 . . . . Kinetic 923 | 26 364 533 . . . Thermal 524 | 25 362 137 . . . Explosive . | . . . . . . Electromagnetic . | . . . . . . Impact . | . . . . . . Slashing 522 | . . . . 172 350 Piercing . | . . . . . . Highest Corruption 1 | . 1 1 . 1 . Average Corruption 1 | . 1 1 . 1 . Corruption Purged . | . . . . . . Corruption Blocked . | . . . . . . Effects 14 | . 1 13 . . . Message Errors 4 | . . 4 . . . Matter Fused 4 | . 1 3 . . . Heat Flow Errors 1 | . . 1 . . . Energy Discharges 2 | . . 2 . . . Data Loss (minor) 1 | . . 1 . . . Data Loss (major) 2 | . . 2 . . . Overload Shots . | . . . . . . Overflow Damage 44 | . . . . 33 11 Projectiles . | . . . . . . Explosions 6 | . . . . . 6 Melee 38 | . . . . 33 5 Knockbacks 5 | . . 5 . . . Impact . | . . . . . . Kinetic 5 | . . 5 . . . Secondary . | . . . . . . Self-Inflicted Damage 43 | . . . . . 43 Shots 3 | . . . . . 3 Rammed 1 | . 1 . . . . Targets Rammed 1 | . 1 . . . . Kicked . | . . . . . . Crushed . | . . . . . . Highest Temperature 177 | 18 90 177 . 81 . Average Temperature 27 | 10 28 88 . 23 . Received Heat Transfer 345 | . 75 138 . 51 81 Siege Activations . | . . . . . . Martial Activations . | . . . . . . Shielding Activations . | . . . . . . Robots Disrupted . | . . . . . . Combat Hostiles . | . . . . . . Robots Corrupted . | . . . . . . Combat Hostiles . | . . . . . . Parts Fried . | . . . . . . Impact Corruptions . | . . . . . . Robots Melted 1 | . 1 . . . . Combat Hostiles 1 | . 1 . . . . Parts Melted 5 | . 2 3 . . . Heat Transferred 1702 | 74 1147 481 . . . Parts Sabotaged . | . . . . . . Parts Stolen . | . . . . . . Parts Stripped . | . . . . . . Power Chain Reactions . | . . . . . . Alert | -11 -10 -10 -9 -6 -5 ------- Run | Yrd Mat Sub Scr Fac Fac Maximum Alert Level . | . . . . . . Low Security (%) 100 | 100 100 . . 100 100 Level 1 . | . . . . . . Level 2 . | . . . . . . Level 3 . | . . . . . . Level 4 . | . . . . . . Level 5 . | . . . . . . High Security . | . . . . . . Max Security . | . . . . . . Peak Influence 107 | 15 90 . . 107 54 Initial 39 | . . . . . 39 Average 26 | 2 33 . . 23 25 Influence Increases 828 | 15 288 . . 341 184 Destroy 0b10 Robot/C 320 | . 200 . . 60 60 Destroy 0b10 Robot/NC 40 | 15 25 . . . . Destroy Leader 84 | . 54 . . 10 20 Successful Hack 14 | . 9 . . 5 . Disable Machine 30 | . . . . 15 15 Destroy Structure 70 | . . . . 26 44 Partial Spotted 75 | . . . . 60 15 Lose Combat Pursuer 195 | . . . . 165 30 Influence Decreases 808 | 15 244 44 . 261 244 Entered New Map 63 | . . 22 . . 41 Time Decay 559 | 15 234 22 . 180 108 Lost Part 185 | . 10 . . 80 95 Purge Threat 1 | . . . . 1 . Squads Dispatched 17 | . 4 . . 11 2 Investigation 10 | . 1 . . 7 2 Extermination 2 | . . . . 2 . Reinforcement 5 | . 3 . . 2 . Assault . | . . . . . . Garrison . | . . . . . . Intercept . | . . . . . . Searches Triggered . | . . . . . . Construction Impeded . | . . . . . . Haulers Reinforced . | . . . . . . Active Scanning Responses . | . . . . . . Cargo Convoy Interrupts . | . . . . . . Stealth | -11 -10 -10 -9 -6 -5 --------- Run | Yrd Mat Sub Scr Fac Fac Distress Signals 3 | . 2 . . 1 . Communications Jammed . | . . . . . . Distress Signals . | . . . . . . Times Spotted 56 | . 20 9 . 20 7 Peak Tracking Total 8 | . 5 2 . 8 5 Tactical Retreats 8 | . . . . 6 2 Traps | -11 -10 -10 -9 -6 -5 ------- Run | Yrd Mat Sub Scr Fac Fac Traps Triggered 4 | . 2 . . 2 . Indirectly . | . . . . . . Trap Hack Attempts . | . . . . . . Triggered . | . . . . . . Disarmed . | . . . . . . Reprogrammed . | . . . . . . Reused . | . . . . . . Traps Extracted . | . . . . . . Installed . | . . . . . . Triggered . | . . . . . . Machines | -11 -10 -10 -9 -6 -5 ---------- Run | Yrd Mat Sub Scr Fac Fac Machines Disabled 2 | . . . . 1 1 Max in Single Turn 1 | . . . . 1 1 Garrison Access 1 | . . . . 1 . Machines Repaired . | . . . . . . Machines Dismantled . | . . . . . . Machines Sabotaged . | . . . . . . Overloaded Fab Kills . | . . . . . . Hacking | -11 -10 -10 -9 -6 -5 --------- Run | Yrd Mat Sub Scr Fac Fac Machines Accessed 20 | . 3 . 3 10 4 Terminals 9 | . 3 . . 4 2 Fabricators . | . . . . . . Repair Stations 1 | . . . . . 1 Recycling Units 6 | . . . . 5 1 Scanalyzers . | . . . . . . Garrison Access 1 | . . . . 1 . Total Hacks 51 | . 10 . 10 23 8 Successful 29 | . 6 . 10 11 2 Failed 22 | . 4 . . 12 6 Catastrophic 6 | . . . . 4 2 Database Lockouts . | . . . . . . Manual 22 | . 7 . . 12 3 Terminals 25 | . 10 . . 11 4 Fabricators . | . . . . . . Repair Stations 3 | . . . . . 3 Recycling Units 11 | . . . . 10 1 Scanalyzers . | . . . . . . Garrison Access 2 | . . . . 2 . Terminal Hacks 16 | . 2 . 10 4 . Record 5 | . . . 5 . . Robot Analysis 4 | . . . 4 . . Prototype ID Bank 3 | . 1 . . 2 . Unreport Threat 2 | . . . . 2 . Locate Traps 1 | . 1 . . . . Proto ID Catalog 1 | . . . 1 . . Fabricator Hacks . | . . . . . . Repair Station Hacks . | . . . . . . Recycling Unit Hacks 1 | . . . . 1 . Retrieve Components 1 | . . . . 1 . Scanalyzer . | . . . . . . Garrison Access Hacks 1 | . . . . 1 . Seal Access 1 | . . . . 1 . Unauthorized Hacks 11 | . 4 . . 5 2 Terminals 6 | . 4 . . 1 1 Botnet 3 | . 1 . . 1 1 Skim 3 | . 3 . . . . Fabricators . | . . . . . . Repair Stations . | . . . . . . Recycling Units 5 | . . . . 4 1 Fedlink 4 | . . . . 4 . Scrapoids 1 | . . . . . 1 Scanalyzers . | . . . . . . Garrison Access . | . . . . . . Data Cores Recovered . | . . . . . . Used . | . . . . . . Hacking Detections 14 | . 3 . . 8 3 Full Trace Events 2 | . . . . 1 1 Feedback Events . | . . . . . . Feedback Blocked . | . . . . . . Robot Schematics Acquired . | . . . . . . Robots Built . | . . . . . . Authchips . | . . . . . . Time . | . . . . . . Total Robot Build Rating . | . . . . . . Part Schematics Acquired . | . . . . . . Parts Built . | . . . . . . Authchips . | . . . . . . Time . | . . . . . . Total Part Build Rating . | . . . . . . Parts Repaired . | . . . . . . Time . | . . . . . . Parts Recycled . | . . . . . . Recycled Matter . | . . . . . . Retrieved Matter . | . . . . . . Retrieved Components . | . . . . . . Parts Scanalyzed . | . . . . . . Part Schematics Acquired . | . . . . . . Parts Damaged . | . . . . . . Bothacking | -11 -10 -10 -9 -6 -5 ------------ Run | Yrd Mat Sub Scr Fac Fac Used RIF Installer . | . . . . . . Robots Hacked . | . . . . . . Non-combat . | . . . . . . Combat . | . . . . . . Robot Hacks Applied . | . . . . . . Relay Couplers Released . | . . . . . . Fabnet Peak Effective % . | . . . . . . Robots Rewired . | . . . . . . Allies Hacked . | . . . . . . Hacks Repelled . | . . . . . . Allies | -11 -10 -10 -9 -6 -5 -------- Run | Yrd Mat Sub Scr Fac Fac Total Allies . | . . . . . . Largest Group . | . . . . . . Highest-Rated Group . | . . . . . . Highest-Rated Ally . | . . . . . . Total Orders . | . . . . . . Ally Attacks . | . . . . . . Total Damage . | . . . . . . Kills . | . . . . . . Allies Corrupted . | . . . . . . Allies Melted . | . . . . . . Intel | -11 -10 -10 -9 -6 -5 ------- Run | Yrd Mat Sub Scr Fac Fac Active Infowar (turns) 6215 | 3 620 1419 3110 799 264 Sensors 897 | . . . . 745 152 Terrain 365 | . . . . 365 . Traps 34 | . . . . 34 . Seismic 5252 | 3 620 1419 3110 100 . Machine Analysis 1013 | . . . . 749 264 Robot Analysis Total 4 | . . . 4 . . Derelict Logs Recovered 5 | . . 1 4 . . Drone Launches . | . . . . . . Drone Recoveries . | . . . . . . Exploration | -11 -10 -10 -9 -6 -5 ------------- Run | Yrd Mat Sub Scr Fac Fac Turns Passed 6297 | 80 620 1424 3110 799 264 Spaces Moved 4016 | 38 286 819 1491 1176 206 Core 16 | 5 . 1 . 4 6 Treads 2096 | 33 286 804 973 . . Legs . | . . . . . . Wheels 124 | . . 14 110 . . Hover 1780 | . . . 408 1172 200 Flight . | . . . . . . Fastest Speed 34 | 50 160 120 116 34 34 Average Speed 139 | 145 160 159 206 44 87 Slowest Speed 450 | 160 160 450 240 400 300 Overloaded Moves . | . . . . . . Propulsion Burnouts . | . . . . . . Robots Hopped . | . . . . . . Potential Cave-ins 5 | . . . . 5 . Cave-ins Triggered . | . . . . . . Exploration Rate (%) 41 | 3 50 62 87 39 7 Regions Visited 5 Branch Regions 2 Pre-discovered Areas 5 | . . 2 2 1 . Known Exits Taken 1 | . . . . 1 . Unknown Exits Taken 4 | 1 1 1 1 . . Scrap Searched 9 | . . 3 6 . . Spaces Dug 62 | . . . . 31 31 Terrain Destroyed 63 | . . . . 32 31 Melee 18 | . . . . 18 . Projectile 14 | . . . . 14 . AOE 31 | . . . . . 31 Terrain Rammed . | . . . . . . Walls Destroyed . | . . . . . . Machines Disabled . | . . . . . . Actions | -11 -10 -10 -9 -6 -5 --------- Run | Yrd Mat Sub Scr Fac Fac Total 4453 | 51 349 886 1527 1372 268 Wait 168 | . 7 27 . 97 37 Move 4011 | 37 285 818 1490 1175 206 Hop . | . . . . . . Pick Up 34 | 2 6 8 12 6 . Fast Attach 29 | 6 . 2 3 14 4 Attach 16 | 1 . 5 3 2 5 Detach 2 | . . . 1 1 . Swap 8 | 1 1 . 1 4 1 Drop 31 | . . . 17 13 1 Fire 111 | 4 49 26 . 28 4 Melee 42 | . . . . 32 10 Ram . | . . . . . . Kick . | . . . . . . Crush 1 | . 1 . . . . Escape Stasis . | . . . . . . Rewire . | . . . . . . Trap . | . . . . . . Miscellaneous . | . . . . . . Route ------- -11/Scrapyard -10/Materials (discovered 2 exits: [*Mat] / [*Sub]) -10/Subcaves (discovered 2 exits: [*Mat] / *Scr) -9/Scraptown (discovered 2 exits: *Fac x2) -6/Factory (discovered 2 exits: *Fac / *Low) -5/Factory History --------- Turn | Location | Event 33 | -11/Scrapyard | Discovered new exit (range 16) 81 | -11/Scrapyard | Entered Materials 302 | -10/Materials | Discovered new exit (range 11) 307 | -10/Materials | Build established: Mutant 638 | -10/Materials | Discovered new exit (range 11) 701 | -10/Materials | Entered Subcaves 702 | -10/Subcaves | Approached by a straggling Scientist 706 | -10/Subcaves | Learned location of Zion (-7) 728 | -10/Subcaves | Ambushed by Subdwellers from Twisted Machinery 943 | -10/Subcaves | Met a Zionite searching for "candidates" 1083 | -10/Subcaves | Scientist uncovered a shortcut to Scraptown 1101 | -10/Subcaves | A swath of the cavern ceiling suddenly collapsed 1424 | -10/Subcaves | Discovered new exit (range 8) 1602 | -10/Subcaves | Core integrity fell below 50% 1682 | -10/Subcaves | A swath of the cavern ceiling suddenly collapsed 2089 | -10/Subcaves | Ambushed by Subdweller buried in earth 2096 | -10/Subcaves | Core integrity fell below 20% 2125 | -10/Subcaves | Entered Scraptown 2125 | -9/Scraptown | System corruption cleaned by C-Scrubber 2132 | -9/Scraptown | Lost 4 parts (2n2w) 2177 | -9/Scraptown | Visited Comm Corps 2636 | -9/Scraptown | Visited Symbiants 2677 | -9/Scraptown | Visited UFD Registry 2677 | -9/Scraptown | Registered with UFD as "Metatank" 2696 | -9/Scraptown | Visited Artisan Demo Area 2720 | -9/Scraptown | Visited IN-MT5's Study 2765 | -9/Scraptown | Visited Fellowship of the Rings 2787 | -9/Scraptown | Visited CPS Storage 2835 | -9/Scraptown | Visited Junk Repository 3142 | -9/Scraptown | Scanned Subdweller tech in exchange for log data 3147 | -9/Scraptown | Learned location of 2 exits from Lower Caves 3149 | -9/Scraptown | Learned location of Extension (-5) 3152 | -9/Scraptown | Learned Factory non-interactive machine intel 3154 | -9/Scraptown | Learned Research stockpile data 3183 | -9/Scraptown | Discovered new exit (range 13) 3543 | -9/Scraptown | Visited DA-N13 Charitable Foundation 3553 | -9/Scraptown | Found DCF Scrap (30 items) 3620 | -9/Scraptown | Visited Abandonware Association 3637 | -9/Scraptown | Learned abandonware demo "OVRCLOCK.EXE" 3646 | -9/Scraptown | Learned abandonware demo "ERRANTS.EXE" 3646 | -9/Scraptown | Learned abandonware demo "MELTYB.EXE" 3709 | -9/Scraptown | Visited Analyses Database 3901 | -9/Scraptown | Visited Supply Room 3932 | -9/Scraptown | Visited Observation Area 3963 | -9/Scraptown | Visited Derelict Rescue Squad 4018 | -9/Scraptown | Visited Science Guys 4292 | -9/Scraptown | Visited Supply Room 4325 | -9/Scraptown | Visited Junk Repository 5061 | -9/Scraptown | Found DRS Beacon 5176 | -9/Scraptown | Met Optimus 5176 | -9/Scraptown | Accepted into 0bPrime 5229 | -9/Scraptown | Discovered new exit (range 5) 5235 | -9/Scraptown | Entered Factory 5235 | -6/Factory | Evolved 8 slots: Propulsion x3, Utility x5 5236 | -6/Factory | Loaded intel: 207 non-interactive machine locations 5259 | -6/Factory | Discovered new exit (range 7) 5295 | -6/Factory | Identified exit to Lower Caves 5390 | -6/Factory | Loaded intel: 8 recycling unit locations 5591 | -6/Factory | Build established: Scout 5813 | -6/Factory | Learned location of Protoforge (-3) 6006 | -6/Factory | Discovered new exit (range 16) 6032 | -6/Factory | Identified exit to Factory 6034 | -6/Factory | Entered another Factory area 6034 | -5/Factory | Evolved 2 slots: Power x1, Propulsion x1 6065 | -5/Factory | Lost 6 parts (1p2n1u2w) 6217 | -5/Factory | Lost 3 parts (1n1u1w) 6273 | -5/Factory | Core integrity fell below 50% 6281 | -5/Factory | Core integrity fell below 20% 6298 | -5/Factory | Destroyed by H-66 Slayer with Heavy Assault Rifle Last Messages --------------- 06271_ Slug penetrates H-66 Slayer. 06272_ Penetrated by Slug. 06272_ Cld. Aerolev Unit destroyed. 06273_ Dropped DRS Beacon. 06274_ Penetrated by Slug. 06276_ Destroyed Phase Shifter. 06276_ Power Sword follow-up attack on H-66 Slayer. 06277_ Penetrated by Slug. 06277_ Power Sword destroyed. 06277_ Penetrated by Slug. 06279_ H-66 Slayer destroyed. 06280_ Penetrated by Slug. 06280_ Imp. Signal Interpreter destroyed. 06284_ Penetrated by Slug. 06289_ H-66 Slayer destroyed. 06293_ Penetrated by Slug. 06293_ Med. Storage Unit destroyed. 06294_ H-66 Slayer Gauss Rifle severed. 06296_ H-66 Slayer Flexi-carbon Leg severed. Map ----- +----------------------------------------------------+ | ??????????????????????????????????? ?????????????? | | ??????????????????????????????????? ??????######## | | ??????????????????????????????????# #?"""?# / | | ??????????????????????????????????# #?"""?# | | ??????????????????????????????????# +?"""?#]] "" | | ??????????????????????????????????# #?????#]] "" | | ??????????????????????????????????# #?????# "" | | ??????????????????????????????????# #?????# ! "" | | ??????????????????????????????????# ####### "" | | ??????????????????????????????????# " | | ??????????????????????????????????# ############## | | ??????????????????????????????????# #????????????? | | ??????????????????????????????????# #????????????? | | ????????????????????????????????### ###??????????? | | ????????????????????????????????# ###########? | | ????????????????????????????????# | | ????????????????????????????????# " | | ????????????????????????????????# | | ???????????????????????????????## ############ | | ???????????????????????########### ##??????????? | | ???????????????????????# ! ! %# #???????????? | | ???????????????????????# # #???????????? | | ???????????????????????#[ !! # +???????????? | | ??????????????????????##%= &* # #???????????? | | ??????????????????????# ![*!%""" + #???????????? | | ??????????????????????##!@%[=""" # #???????????? | | ???????????????????????#h!Y" """ #####???????????? | | ???????????????????????#=""" #???????????????? | | ???????????????????????###########???????????????? | | ?????????????????????????????????????????????????? | | ?????????????????????????????????????????????????? | | ?????????????????????????????????????????????????? | | ?????????????????????????????????????????????????? | | ??????????????????????????????????????????"""T"""? | | ?????????????????????????????????????????????????? | | ?????????????????????????????????????????????????? | | ?????????????????????????????????????????????????? | | ?????????????????????????????????????????????????? | | ?????????????????????????????????????????????????? | | ?????????????????????????????????????????????????? | | ?????????????????????????????????????????????????? | | ?????????????????????????????????????????????????? | | ?????????????????????????????????????????????????? | | ?????????????????????????????????????????????????? | | ?????????????????????????????????????????????????? | | ?????????????????????????????????????????????????? | | ?????????????????????????????????????????????????? | | ?????????????????????????????????????????????????? | | ?????????????????????????????????????????????????? | | ?????????????????????????????????????????????????? | +----------------------------------------------------+ Best States ------------- Heat Dissipation 40 Energy Generation 19 Energy Capacity 315 Matter Stores 300 Matter Capacity 300 Sight Range 16 Robot Scan Range 15 Terrain Scan Range 20 Terrain Scan Density 85 Additional Mass Support 12 Evasion (%) 58 Recoil Reduction 2 Defensive Hacking 10 Item Schematics ----------------- None Robot Schematics ------------------ None Fabricated ------------ Nothing Repaired ---------- Nothing Alien Tech Used ----------------- None Achievements -------------- None Challenges ------------ None Game ------ Seed MatterStealthExpander Manual? 0 Play Time 00:39:55 Cumulative 189.4 hours Start 2025.08.16 @ 19:49:09 End 2025.08.16 @ 20:25:16 Sessions 1 Manual Loads 0 Difficulty Rogue Special Mode None Game No. 158 Rogue 158 Adventurer 0 Explorer 0 Win Type - Total 5 Types 3/0/1/1/0/0/0/0/0/0 Lore% 79 Gallery% 71 Achievement% 66 Wizard Run 0 Options --------- Layout 1 ASCII 0 Keyboard 0 Movement Numpad Keybinds 0 Fullscreen 1 Font 24/Smallcaps Map View 50x35 Zoom Use 0% Tactical HUD 1 Map Filters NONE Filters NONE Steam 1 RUN: 2d4b802e-4e31-4346-8976-3aef29203bea